fUSD/lending_fUSD_20260702
["ID","MTS","AMOUNT","RATE_DAILY","PERIOD"]
[426902066,1782999040000,-212.93692286,0.00027546,2]
[426902065,1782999040000,-551.17081607,0.00027546,2]
[426902067,1782999040000,-475.87213417,0.00027546,2]
[426902070,1782999040000,-363.6444086,0.00027546,2]
[426902074,1782999040000,-408.43783276,0.00027546,2]
[426902077,1782999040000,-438.15848893,0.00027546,2]
[426902075,1782999040000,-174.97070727,0.00027546,2]
[426902105,1782999040000,-230.07891307,0.00027547,2]
[426902150,1782999040000,-218.12027069,0.00028399,2]
[426902104,1782999040000,-201.64576125,0.00027547,2]
[426902142,1782999040000,-1382.98759702,0.000281,2]
[426902135,1782999040000,-678.0,0.00027828,5]
[426902137,1782999040000,-673.0,0.00027989,5]
[426902138,1782999040000,-152.0,0.00028,2]
[426902140,1782999040000,-177.0,0.00028,2]
[426902139,1782999040000,-168.0,0.00028,2]
[426902141,1782999040000,-1791.60009524,0.000281,2]
[426902143,1782999040000,-1338.6008926,0.000281,2]
[426902144,1782999040000,-8134.244982,0.000282,2]
[426902146,1782999040000,-611.41,0.00028364,7]
[426902147,1782999040000,-742.8,0.00028364,7]
[426902132,1782999040000,-1791.60009524,0.000278,2]
[426902145,1782999040000,-5805.73891036,0.00028317,2]
[426902148,1782999040000,-459.05,0.00028364,7]
[426902160,1782999040000,-8134.244982,0.000284,2]
[426902151,1782999040000,-184.90772972,0.00028399,2]
[426902153,1782999040000,-408.26010094,0.00028399,2]
[426902152,1782999040000,-500.0,0.00028399,2]
[426902155,1782999040000,-500.0,0.00028399,2]
[426902157,1782999040000,-500.0,0.00028399,2]
[426902156,1782999040000,-418.98240237,0.00028399,2]
[426902154,1782999040000,-230.42807859,0.00028399,2]
[426902158,1782999040000,-500.0,0.00028399,2]
[426902159,1782999040000,-1382.98759702,0.000284,2]
[426902149,1782999040000,-1000.0,0.00028399,2]
[426902134,1782999040000,-1338.6008926,0.000278,2]
[426902107,1782999040000,-457.7309928,0.00027547,2]
[426902133,1782999040000,-1382.98759702,0.000278,2]
[426902136,1782999040000,-8134.244982,0.000279,2]
[426902102,1782999040000,-463.31581061,0.00027547,2]
[426902108,1782999040000,-247.59114268,0.00027547,2]
[426902103,1782999040000,-306.89519691,0.00027547,2]
[426902111,1782999040000,-244.73940062,0.00027547,2]
[426902119,1782999040000,-331.61707646,0.00027547,2]
[426902110,1782999040000,-629.69831319,0.00027547,2]
[426902112,1782999040000,-444.82664183,0.00027547,2]
[426902113,1782999040000,-199.67808095,0.00027547,2]
[426902114,1782999040000,-376.19491378,0.00027547,2]
[426902115,1782999040000,-156.43641278,0.00027547,2]
[426902117,1782999040000,-198.08109889,0.00027547,2]
[426902120,1782999040000,-178.32338398,0.00027547,2]
[426902118,1782999040000,-465.47141376,0.00027547,2]
[426902116,1782999040000,-167.94611917,0.00027547,2]
[426902123,1782999040000,-324.05764555,0.00027547,2]
[426902125,1782999040000,-1382.98759702,0.000276,2]
[426902121,1782999040000,-348.79340233,0.00027547,2]
[426902127,1782999040000,-8134.244982,0.000276,2]
[426902124,1782999040000,-1791.60009524,0.000276,2]
[426902131,1782999040000,-1165.15,0.0002776,2]
[426902128,1782999040000,-5805.73891036,0.00027603,2]
[426902122,1782999040000,-379.98677773,0.00027547,2]
[426902129,1782999040000,-642.7,0.00027615,2]
[426902130,1782999040000,-687.0,0.00027628,5]
[426902126,1782999040000,-1338.6008926,0.000276,2]
[426902198,1782999041000,-1404.47335917,0.00029757,2]
[426902199,1782999041000,-177.09737896,0.00029773,2]
[426902200,1782999041000,-318.45650684,0.00029773,2]
[426902196,1782999041000,-8134.244982,0.000296,2]
[426902190,1782999041000,-1382.98759702,0.000293,2]
[426902194,1782999041000,-150.0,0.00029534,2]
[426902195,1782999041000,-1382.98759702,0.000296,2]
[426902193,1782999041000,-194.2,0.00029418,2]
[426902192,1782999041000,-500.0,0.00029321,7]
[426902207,1782999041000,-165.08,0.00029842,2]
[426902197,1782999041000,-5805.73891036,0.00029744,2]
[426902203,1782999041000,-194.2,0.00029792,30]
[426902238,1782999041000,-500.0,0.00030099,7]
[426902214,1782999041000,-800.0,0.0003,2]
[426902212,1782999041000,-500.0,0.00029999,7]
[426902209,1782999041000,-2062.0,0.00029905,2]
[426902216,1782999041000,-1091.58292482,0.0003002,2]
[426902220,1782999041000,-500.0,0.00030079,7]
[426902218,1782999041000,-500.0,0.00030079,7]
[426902223,1782999041000,-500.0,0.00030089,7]
[426902225,1782999041000,-500.0,0.00030089,7]
[426902229,1782999041000,-500.0,0.00030099,7]
[426902240,1782999041000,-478.81135694,0.00030099,7]
[426902233,1782999041000,-500.0,0.00030099,7]
[426902191,1782999041000,-8134.244982,0.000293,2]
[426902205,1782999041000,-500.0,0.0002981,14]
[426902189,1782999041000,-165.08,0.00029241,7]
[426902176,1782999041000,-290.0,0.00028904,2]
[426902188,1782999041000,-500.0,0.00029119,7]
[426902163,1782999041000,-668.0,0.00028461,5]
[426902231,1782999041000,-500.0,0.00030099,7]
[426902164,1782999041000,-666.0,0.00028464,5]
[426902162,1782999041000,-150.0,0.0002846,5]
[426902166,1782999041000,-165.08,0.0002864,30]
[426902165,1782999041000,-677.0,0.00028485,5]
[426902168,1782999041000,-1382.98759702,0.000287,2]
[426902167,1782999041000,-194.2,0.00028672,30]
[426902169,1782999041000,-8134.244982,0.000287,2]
[426902170,1782999041000,-500.0,0.00028792,7]
[426902172,1782999041000,-500.0,0.00028792,7]
[426902175,1782999041000,-1404.47335917,0.000289,2]
[426902173,1782999041000,-500.0,0.00028792,7]
[426902174,1782999041000,-500.0,0.00028792,7]
[426902171,1782999041000,-500.0,0.00028792,7]
[426902177,1782999041000,-500.0,0.00028999,7]
[426902184,1782999041000,-5805.73891036,0.0002903,2]
[426902183,1782999041000,-2000.0,0.00029024,4]
[426902185,1782999041000,-194.2,0.00029045,7]
[426902182,1782999041000,-185.0,0.00029,2]
[426902181,1782999041000,-179.0,0.00029,2]
[426902180,1782999041000,-153.0,0.00029,2]
[426902179,1782999041000,-8134.244982,0.00029,2]
[426902178,1782999041000,-1382.98759702,0.00029,2]
[426902186,1782999041000,-500.0,0.00029118,2]
[426902187,1782999041000,-189.45702275,0.00029118,2]
[426902161,1782999041000,-265.419946,0.0002842,14]
[426902235,1782999041000,-500.0,0.00030099,7]
[426902242,1782999041000,-2951.83,0.00030099,25]
[426902309,1782999041000,-500.0,0.00031178,2]
[426902307,1782999041000,-5805.73891036,0.00031172,2]
[426902305,1782999041000,-1091.58292482,0.00031116,2]
[426902313,1782999041000,-2499.46,0.000312,2]
[426902311,1782999041000,-11708.5,0.000312,2]
[426902317,1782999041000,-292.05075561,0.00031223,28]
[426902315,1782999041000,-1116.55,0.000312,2]
[426902330,1782999041000,-9000.0,0.000313,5]
[426902334,1782999041000,-300.0,0.00031337,30]
[426902319,1782999041000,-194.2,0.00031286,7]
[426902336,1782999041000,-248.8483779,0.0003135,2]
[426902332,1782999041000,-250.71164464,0.0003131,2]
[426902326,1782999041000,-302.042,0.00031297,2]
[426902324,1782999041000,-1296.37454787,0.00031296,7]
[426902338,1782999041000,-214.48449084,0.0003135,2]
[426902342,1782999041000,-186.35405345,0.00031355,30]
[426902321,1782999041000,-13537.55429404,0.00031288,2]
[426902340,1782999041000,-182.70913422,0.0003135,2]
[426902328,1782999041000,-2000.0,0.00031299,5]
[426902344,1782999041000,-40000.0,0.00031361,3]
[426902346,1782999041000,-1091.58292482,0.0003139,2]
[426902350,1782999041000,-1404.47335917,0.00031471,2]
[426902348,1782999041000,-862.03428059,0.00031395,7]
[426902352,1782999041000,-350.0,0.00031523,3]
[426902227,1782999041000,-500.0,0.00030099,7]
[426902301,1782999041000,-2000.0,0.00031039,20]
[426902303,1782999041000,-246.7383224,0.0003105,30]
[426902354,1782999041000,-13537.55429404,0.00031578,2]
[426902297,1782999041000,-1000.0,0.00031,7]
[426902299,1782999041000,-150.0,0.00031011,2]
[426902244,1782999041000,-167.984,0.00030099,25]
[426902260,1782999041000,-165.1,0.00030444,30]
[426902246,1782999041000,-150.0,0.00030137,30]
[426902264,1782999041000,-194.2,0.00030539,2]
[426902250,1782999041000,-194.2,0.00030165,7]
[426902256,1782999041000,-150.0,0.00030441,30]
[426902248,1782999041000,-400.0,0.00030142,7]
[426902262,1782999041000,-5805.73891036,0.00030458,2]
[426902252,1782999041000,-1091.58292482,0.00030294,2]
[426902258,1782999041000,-2000.0,0.00030443,26]
[426902266,1782999041000,-1091.58292482,0.00030568,2]
[426902268,1782999041000,-2013.0,0.000306,2]
[426902254,1782999041000,-153.0,0.000304,7]
[426902276,1782999041000,-150.0,0.00030746,30]
[426902289,1782999041000,-194.2,0.00030912,30]
[426902295,1782999041000,-13537.55429404,0.00030999,2]
[426902293,1782999041000,-2000.0,0.00030914,18]
[426902285,1782999041000,-3986.79769908,0.00030847,7]
[426902280,1782999041000,-2000.0,0.0003081,3]
[426902291,1782999041000,-2000.0,0.00030912,6]
[426902282,1782999041000,-1091.58292482,0.00030842,2]
[426902278,1782999041000,-55908.1880659,0.00030746,2]
[426902270,1782999041000,-1404.47335917,0.00030614,2]
[426902287,1782999041000,-2000.0,0.00030901,120]
[426902274,1782999041000,-195.22889805,0.00030723,28]
[426902272,1782999041000,-13537.55429409,0.0003071,2]
[426902392,1782999042000,-223.0,0.00031971,2]
[426902398,1782999042000,-151.0,0.00031997,7]
[426902396,1782999042000,-151.0,0.00031997,7]
[426902395,1782999042000,-403.91202118,0.0003199,2]
[426902389,1782999042000,-110907.668178,0.00031941,2]
[426902391,1782999042000,-5976.1614394,0.00031941,2]
[426902388,1782999042000,-501.95764274,0.0003194,14]
[426902390,1782999042000,-2276.9850107,0.00031941,2]
[426902387,1782999042000,-1091.58292482,0.00031938,2]
[426902393,1782999042000,-1278.0,0.00031971,2]
[426902394,1782999042000,-403.91202118,0.0003199,2]
[426902402,1782999042000,-1000.0,0.00031999,2]
[426902399,1782999042000,-151.0,0.00031997,7]
[426902400,1782999042000,-2000.0,0.00031998,10]
[426902401,1782999042000,-2000.0,0.00031998,60]
[426902403,1782999042000,-1000.0,0.00031999,2]
[426902408,1782999042000,-1000.0,0.00031999,2]
[426902409,1782999042000,-1000.0,0.00031999,2]
[426902405,1782999042000,-1000.0,0.00031999,2]
[426902407,1782999042000,-1000.0,0.00031999,2]
[426902404,1782999042000,-1000.0,0.00031999,2]
[426902406,1782999042000,-1000.0,0.00031999,2]
[426902410,1782999042000,-1000.0,0.00031999,2]
[426902384,1782999042000,-2000.0,0.00031935,2]
[426902397,1782999042000,-151.0,0.00031997,7]
[426902383,1782999042000,-205.69219555,0.000319,6]
[426902374,1782999042000,-5805.73891036,0.00031885,2]
[426902385,1782999042000,-2000.0,0.00031935,7]
[426902358,1782999042000,-188.93987,0.0003162,21]
[426902356,1782999042000,-165.47,0.00031584,2]
[426902359,1782999042000,-188.93988,0.0003162,21]
[426902362,1782999042000,-188.93988,0.0003162,21]
[426902361,1782999042000,-188.93988,0.0003162,21]
[426902363,1782999042000,-188.93988,0.0003162,21]
[426902360,1782999042000,-188.93988,0.0003162,21]
[426902364,1782999042000,-350.0,0.00031621,2]
[426902366,1782999042000,-1091.58292482,0.00031664,2]
[426902368,1782999042000,-200.0,0.00031681,2]
[426902367,1782999042000,-389.19381857,0.00031667,2]
[426902365,1782999042000,-194.2,0.00031659,2]
[426902369,1782999042000,-151.95542079,0.00031688,2]
[426902371,1782999042000,-350.0,0.00031797,21]
[426902375,1782999042000,-1000.0,0.00031899,2]
[426902372,1782999042000,-1933.01473403,0.0003186,7]
[426902373,1782999042000,-13537.55429404,0.00031867,2]
[426902370,1782999042000,-395.1486,0.00031723,28]
[426902377,1782999042000,-2000.0,0.000319,2]
[426902376,1782999042000,-33361.7046,0.000319,2]
[426902379,1782999042000,-193.07448292,0.000319,2]
[426902380,1782999042000,-1989.51908624,0.000319,2]
[426902378,1782999042000,-263.19497868,0.000319,2]
[426902381,1782999042000,-511.21232853,0.000319,2]
[426902382,1782999042000,-150.7194063,0.000319,2]
[426902386,1782999042000,-57607.2214925,0.00031936,2]
[426902411,1782999042000,-1000.0,0.00031999,2]
[426902414,1782999042000,-1000.0,0.00031999,2]
[426902422,1782999042000,-37435.9534,0.00032,2]
[426902443,1782999042000,-200.0,0.00032,2]
[426902446,1782999042000,-2040.0735564,0.0003201,2]
[426902445,1782999042000,-2533.63640706,0.0003201,2]
[426902452,1782999042000,-396.0,0.00032034,2]
[426902450,1782999042000,-396.0,0.00032033,2]
[426902449,1782999042000,-396.0,0.00032024,2]
[426902447,1782999042000,-396.0,0.00032013,2]
[426902448,1782999042000,-396.0,0.00032019,2]
[426902451,1782999042000,-194.24,0.00032033,30]
[426902454,1782999042000,-390.85,0.00032041,3]
[426902462,1782999042000,-396.0,0.00032072,2]
[426902444,1782999042000,-216.69616408,0.00032,30]
[426902463,1782999042000,-186.2981946,0.0003208,2]
[426902458,1782999042000,-396.0,0.00032056,2]
[426902457,1782999042000,-396.0,0.00032055,2]
[426902455,1782999042000,-396.0,0.00032042,2]
[426902456,1782999042000,-396.0,0.00032045,2]
[426902459,1782999042000,-396.0,0.00032063,2]
[426902460,1782999042000,-396.0,0.00032065,2]
[426902461,1782999042000,-396.0,0.00032068,2]
[426902464,1782999042000,-209.7018054,0.0003208,2]
[426902467,1782999042000,-396.0,0.00032087,2]
[426902466,1782999042000,-396.0,0.00032085,2]
[426902465,1782999042000,-396.0,0.0003208,2]
[426902453,1782999042000,-396.0,0.00032035,2]
[426902442,1782999042000,-173.40636751,0.00032,30]
[426902412,1782999042000,-1000.0,0.00031999,2]
[426902439,1782999042000,-173.40636752,0.00032,30]
[426902413,1782999042000,-1000.0,0.00031999,2]
[426902415,1782999042000,-2000.0,0.00031999,30]
[426902416,1782999042000,-2000.0,0.00031999,14]
[426902418,1782999042000,-2000.0,0.00031999,11]
[426902417,1782999042000,-2000.0,0.00031999,15]
[426902420,1782999042000,-2205428.94837138,0.00032,30]
[426902421,1782999042000,-252878.78999619,0.00032,2]
[426902419,1782999042000,-2000.0,0.00031999,12]
[426902423,1782999042000,-363330.40605122,0.00032,20]
[426902424,1782999042000,-9519.77550786,0.00032,20]
[426902425,1782999042000,-2348.0,0.00032,20]
[426902429,1782999042000,-341.50517263,0.00032,20]
[426902438,1782999042000,-200.0,0.00032,2]
[426902430,1782999042000,-3681.83808517,0.00032,20]
[426902427,1782999042000,-469.09036205,0.00032,20]
[426902435,1782999042000,-157.56,0.00032,7]
[426902440,1782999042000,-173.40636751,0.00032,30]
[426902434,1782999042000,-160.33,0.00032,7]
[426902441,1782999042000,-173.40636751,0.00032,30]
[426902436,1782999042000,-200.0,0.00032,2]
[426902433,1782999042000,-159.08,0.00032,7]
[426902431,1782999042000,-41228.16517628,0.00032,20]
[426902432,1782999042000,-2922.02,0.00032,7]
[426902426,1782999042000,-1465.70254899,0.00032,20]
[426902428,1782999042000,-3216.5170958,0.00032,20]
[426902437,1782999042000,-158.63278253,0.00032,7]
[426902499,1782999043000,-396.0,0.00032206,2]
[426902490,1782999043000,-396.0,0.00032166,2]
[426902495,1782999043000,-396.0,0.00032185,2]
[426902496,1782999043000,-396.0,0.00032189,2]
[426902491,1782999043000,-396.0,0.00032175,2]
[426902492,1782999043000,-396.0,0.00032183,2]
[426902497,1782999043000,-396.0,0.00032194,2]
[426902509,1782999043000,-469.0,0.00032225,2]
[426902505,1782999043000,-396.0,0.00032213,2]
[426902503,1782999043000,-1091.58292482,0.00032212,2]
[426902507,1782999043000,-396.0,0.00032222,2]
[426902498,1782999043000,-150.0,0.000322,10]
[426902488,1782999043000,-396.0,0.00032164,2]
[426902517,1782999043000,-7414.40720789,0.0003224,2]
[426902512,1782999043000,-396.0,0.00032228,2]
[426902501,1782999043000,-396.0,0.00032208,2]
[426902486,1782999043000,-13537.55429404,0.00032156,2]
[426902484,1782999043000,-396.0,0.0003215,2]
[426902479,1782999043000,-396.0,0.00032136,2]
[426902468,1782999043000,-391.0,0.00032087,2]
[426902470,1782999043000,-396.0,0.00032094,2]
[426902469,1782999043000,-300.0,0.00032088,7]
[426902471,1782999043000,-396.0,0.00032104,2]
[426902472,1782999043000,-396.0,0.00032105,2]
[426902474,1782999043000,-396.0,0.00032108,2]
[426902475,1782999043000,-396.0,0.00032108,2]
[426902473,1782999043000,-396.0,0.00032105,2]
[426902476,1782999043000,-396.0,0.00032117,2]
[426902478,1782999043000,-404.0,0.0003213,2]
[426902481,1782999043000,-396.0,0.00032138,2]
[426902485,1782999043000,-396.0,0.00032155,2]
[426902483,1782999043000,-396.0,0.00032147,2]
[426902480,1782999043000,-396.0,0.00032136,2]
[426902482,1782999043000,-396.0,0.00032146,2]
[426902477,1782999043000,-396.0,0.00032126,2]
[426902519,1782999043000,-1220.78023802,0.0003224,2]
[426902515,1782999043000,-161.34459185,0.00032228,2]
[426902526,1782999043000,-396.0,0.0003224,2]
[426902550,1782999043000,-200.0,0.0003232,2]
[426902551,1782999043000,-200.0,0.0003232,2]
[426902548,1782999043000,-237.18,0.0003231,30]
[426902552,1782999043000,-200.0,0.0003232,2]
[426902555,1782999043000,-186.17912312,0.00032333,2]
[426902524,1782999043000,-11967.81255409,0.0003224,2]
[426902556,1782999043000,-2358.0,0.0003236,11]
[426902549,1782999043000,-200.0,0.00032313,2]
[426902558,1782999043000,-157.56,0.000324,7]
[426902557,1782999043000,-37716.12364436,0.000324,2]
[426902560,1782999043000,-1000.0,0.000324,2]
[426902559,1782999043000,-255.15304565,0.000324,2]
[426902561,1782999043000,-317.0,0.000324,2]
[426902562,1782999043000,-256.46796547,0.000324,2]
[426902563,1782999043000,-1337.30512863,0.000324,2]
[426902564,1782999043000,-3643.72371237,0.000324,2]
[426902553,1782999043000,-1404.47335917,0.00032329,2]
[426902547,1782999043000,-166.62217528,0.00032301,30]
[426902554,1782999043000,-26654.54280534,0.0003233,120]
[426902540,1782999043000,-396.0,0.00032285,2]
[426902543,1782999043000,-914.69790975,0.000323,2]
[426902532,1782999043000,-65826.05066088,0.0003226,2]
[426902530,1782999043000,-396.0,0.00032256,2]
[426902534,1782999043000,-101528.68800757,0.0003226,2]
[426902531,1782999043000,-1000.0,0.00032259,2]
[426902546,1782999043000,-166.62217528,0.00032301,30]
[426902545,1782999043000,-166.62217527,0.00032301,30]
[426902528,1782999043000,-396.0,0.00032245,2]
[426902537,1782999043000,-300.3,0.00032267,30]
[426902536,1782999043000,-175.6375,0.00032267,30]
[426902542,1782999043000,-396.0,0.00032288,2]
[426902544,1782999043000,-161.29314015,0.000323,2]
[426902539,1782999043000,-396.0,0.00032278,2]
[426902533,1782999043000,-4612.89216853,0.0003226,2]
[426902535,1782999043000,-396.0,0.00032262,2]
[426902541,1782999043000,-160.26410598,0.00032285,2]
[426902538,1782999043000,-178.7365535,0.00032268,30]
[426902581,1782999044000,-4926.27554173,0.000325,15]
[426902579,1782999044000,-250.0,0.000325,30]
[426902577,1782999044000,-1091.58292482,0.00032486,2]
[426902576,1782999044000,-150.0,0.00032473,2]
[426902575,1782999044000,-150.0,0.00032473,2]
[426902574,1782999044000,-150.0,0.00032473,2]
[426902573,1782999044000,-252.364,0.00032467,2]
[426902572,1782999044000,-150.0,0.00032463,2]
[426902566,1782999044000,-166.62217527,0.00032438,30]
[426902570,1782999044000,-1200.87936338,0.00032445,2]
[426902569,1782999044000,-8947.21879473,0.00032445,2]
[426902568,1782999044000,-3389.45613593,0.00032445,2]
[426902567,1782999044000,-166.62217528,0.00032438,30]
[426902565,1782999044000,-167.87,0.00032421,30]
[426902580,1782999044000,-3288.95757642,0.000325,15]
[426902571,1782999044000,-150.0,0.00032459,2]
[426902584,1782999044000,-263.19497867,0.00032533,2]
[426902578,1782999044000,-2110.0,0.000325,2]
[426902583,1782999044000,-159.08,0.000325,7]
[426902596,1782999044000,-166.62217528,0.00032603,30]
[426902599,1782999044000,-171.80547597,0.00032652,5]
[426902598,1782999044000,-200.0,0.00032643,2]
[426902597,1782999044000,-200.0,0.00032643,2]
[426902594,1782999044000,-359.21389733,0.00032599,2]
[426902593,1782999044000,-893.19740061,0.00032599,2]
[426902591,1782999044000,-166.62217528,0.00032575,30]
[426902595,1782999044000,-37.24363919,0.00032599,2]
[426902590,1782999044000,-166.62217527,0.00032575,30]
[426902582,1782999044000,-2922.02,0.000325,7]
[426902585,1782999044000,-485.0,0.00032545,5]
[426902592,1782999044000,-4516.08397323,0.00032599,2]
[426902589,1782999044000,-178.7365535,0.00032572,30]
[426902588,1782999044000,-83.02185888,0.00032562,2]
[426902587,1782999044000,-66.97814112,0.00032562,2]
[426902586,1782999044000,-255.0,0.00032545,5]
[426902609,1782999045000,-1421.86,0.00032735,2]
[426902600,1782999045000,-241.31381421,0.000241,7]
[426902601,1782999045000,-100.19452403,0.00032652,5]
[426902603,1782999045000,-180.90424512,0.00032662,2]
[426902602,1782999045000,-166.89,0.0003266,30]
[426902604,1782999045000,-166.62217527,0.00032685,30]
[426902606,1782999045000,-204.53,0.000327,30]
[426902607,1782999045000,-2250.39729707,0.00032735,2]
[426902608,1782999045000,-2062.25804312,0.00032735,2]
[426902605,1782999045000,-166.62217528,0.00032685,30]
[426902631,1782999046000,-227.13251241,0.00032742,14]
[426902619,1782999046000,-231.65165785,0.00032735,2]
[426902635,1782999046000,-1091.58292482,0.0003276,2]
[426902637,1782999046000,-151.0,0.00032762,2]
[426902633,1782999046000,-208.61,0.00032758,30]
[426902642,1782999046000,-87.91313181,0.000328,2]
[426902640,1782999046000,-4855.75406085,0.000328,2]
[426902644,1782999046000,-160.33,0.000328,7]
[426902626,1782999046000,-7571.387296,0.00032735,2]
[426902617,1782999046000,-168.33840262,0.000319,2]
[426902629,1782999046000,-200.0,0.00032735,2]
[426902648,1782999046000,-185.23265193,0.000328,2]
[426902646,1782999046000,-157.56,0.000328,7]
[426902663,1782999046000,-218.86194029,0.00032869,2]
[426902665,1782999046000,-700.0,0.0003287,2]
[426902664,1782999046000,-300.0,0.0003287,2]
[426902653,1782999046000,-166.62217527,0.00032822,30]
[426902655,1782999046000,-166.62217528,0.00032822,30]
[426902662,1782999046000,-412.45620917,0.00032869,2]
[426902651,1782999046000,-175.6375,0.00032815,30]
[426902657,1782999046000,-350.0,0.00032847,2]
[426902661,1782999046000,-666.54434994,0.00032869,2]
[426902659,1782999046000,-12.58236571,0.00032869,2]
[426902676,1782999047000,-166.62217527,0.00032959,30]
[426902667,1782999047000,-166.62217528,0.00032877,30]
[426902674,1782999047000,-400.0,0.0003289,2]
[426902677,1782999047000,-166.62217528,0.00032959,30]
[426902678,1782999047000,-1000.0,0.00032959,2]
[426902671,1782999047000,-936.8,0.00032877,120]
[426902672,1782999047000,-178.7365535,0.00032877,30]
[426902670,1782999047000,-488.00259108,0.00032877,50]
[426902666,1782999047000,-700.0,0.0003287,2]
[426902679,1782999047000,-1000.0,0.00032959,2]
[426902668,1782999047000,-168.1786964,0.00032877,2]
[426902673,1782999047000,-573.3506609,0.00032877,10]
[426902669,1782999047000,-1511.99740892,0.00032877,50]
[426902675,1782999047000,-300.0,0.000329,30]
[426902683,1782999047000,-300.0,0.0003297,2]
[426902681,1782999047000,-300.0,0.0003297,2]
[426902694,1782999047000,-12650.24891901,0.0003298,2]
[426902691,1782999047000,-14691.85341866,0.0003298,2]
[426902692,1782999047000,-2674.52937413,0.0003298,2]
[426902686,1782999047000,-700.0,0.0003297,2]
[426902689,1782999047000,-200.0,0.0003297,2]
[426902685,1782999047000,-700.0,0.0003297,2]
[426902693,1782999047000,-1631.12723882,0.0003298,2]
[426902688,1782999047000,-200.0,0.0003297,2]
[426902690,1782999047000,-46761.90477255,0.0003298,2]
[426902684,1782999047000,-300.0,0.0003297,2]
[426902682,1782999047000,-700.0,0.0003297,2]
[426902680,1782999047000,-700.0,0.0003297,2]
[426902687,1782999047000,-700.0,0.0003297,2]
[426902709,1782999054000,500.0,0.000179,2]
[426902717,1782999417000,573.11,0.000177,2]
[426902720,1782999506000,177.54,0.00026515,120]
[426902722,1782999544000,-151.0,0.00018,2]
[426902721,1782999544000,-151.0,0.00018,2]
[426902723,1782999544000,-151.0,0.00018,2]
[426902726,1782999628000,174.0,0.000301,120]
[426902727,1782999633000,3543.4,0.00030136,120]
[426902729,1782999680000,-150.0,0.00019459,2]
[426902736,1782999997000,151474.0851,0.000249,120]
[426902737,1783000007000,366448.0,0.000301,120]
[426902761,1783000122000,158.41358019,0.00030136,120]
[426902763,1783000123000,-150.0,0.00014545,2]
[426902765,1783000123000,-219.27268615,0.00014899,2]
[426902762,1783000123000,-348.81352318,0.000142,2]
[426902764,1783000123000,-675.281,0.00014889,2]
[426902766,1783000123000,-1339.87385273,0.000149,2]
[426902767,1783000123000,-489.40081979,0.000149,2]
[426902768,1783000123000,-3222.64188185,0.000149,2]
[426902769,1783000123000,-3222.64188185,0.000149,2]
[426902783,1783000148000,-152.35420784,0.00014999,2]
[426902782,1783000148000,-150.0,0.00014998,2]
[426902781,1783000148000,-789.99999999,0.00014989,2]
[426902780,1783000148000,-2323.64618693,0.000149,2]
[426902778,1783000148000,-3416.00039476,0.000149,2]
[426902779,1783000148000,-1607.53839116,0.000149,2]
[426902777,1783000148000,-3416.00039476,0.000149,2]
[426902787,1783000172000,-500.0,0.00014999,2]
[426902789,1783000172000,-264.67766243,0.00014999,2]
[426902788,1783000172000,-169.12842358,0.00014999,2]
[426902786,1783000172000,-847.64579216,0.00014999,2]
[426902800,1783000173000,-500.0,0.00014999,2]
[426902790,1783000173000,-470.05413656,0.00014999,2]
[426902791,1783000173000,-500.0,0.00014999,2]
[426902792,1783000173000,-500.0,0.00014999,2]
[426902793,1783000173000,-401.60517154,0.00014999,2]
[426902796,1783000173000,-500.0,0.00014999,2]
[426902794,1783000173000,-17.37723083,0.00014999,2]
[426902797,1783000173000,-500.0,0.00014999,2]